Cogmind - Beta 10.2 @@@ ROGUE MODE // 2021.10.18 @ 21:26:04 Player: MinorBread Result: Destroyed by D-53 Grenadier with Mini Grenade Launcher Performance ------------- Evolutions (0) 0 Regions Visited (4) 800 Robots Destroyed (17) 85 Value Destroyed (434) 434 Prototype IDs (23) 460 Alien Tech Used (0) 0 Bonus (300) 300 TOTAL SCORE: 2079 Bonus ------- Aligned with FarCom 300 Cogmind --------- Core Integrity 0/250 Matter 270/300 Energy 87/100 System Corruption 0% Temperature Cool (0) Movement Walking (240) Ox4 Location -9/Mines Parts ------- > --- POWER (1) -------- (None) > --- PROPULSION (2) --- Light Treads Aluminum Leg > --- UTILITY (2) ------ Large Storage Unit High-capacity Storage Unit > --- WEAPON (2) ------- (None) > --- INVENTORY (18) --- Ion Engine Aluminum Leg Medium Storage Unit Medium Storage Unit Utility Shielding Bomb Drone Bay EM Pulse Gun Assault Rifle Grenade Launcher Grenade Launcher Rocket Launcher Longsword +1 Peak State ------------ > --- POWER ------------ Ion Engine > --- PROPULSION ------- Light Treads Wheel > --- UTILITY ---------- Large Storage Unit High-capacity Storage Unit > --- WEAPON ----------- EM Pulse Gun EM Pulse Gun > --- INVENTORY -------- Ion Engine Light Treads Light Treads Light Treads Aluminum Leg Aluminum Leg Medium Storage Unit Medium Storage Unit Utility Shielding Bomb Drone Bay EM Pulse Gun Assault Rifle Grenade Launcher Grenade Launcher Rocket Launcher Longsword +1 [Rating: 10] Favorites ----------- Power Ion Engine Engine Ion Engine Propulsion Light Treads Treads Light Treads Leg Aluminum Leg Wheel Wheel Utility High-capacity Storage Unit Storage High-capacity Storage Unit Weapon EM Pulse Gun Energy Gun EM Pulse Gun Ballistic Gun Assault Rifle Launcher Grenade Launcher Build | -11 -10 -10 -10 -9 ------- Run | Scr Mat Min Exi Min Slots Evolved . | . . . . . Power . | . . . . . Propulsion . | . . . . . Utility . | . . . . . Weapon . | . . . . . Parts Attached 18 | . 14 . . 4 Power 1 | . 1 . . . Engine 1 | . 1 . . . Core . | . . . . . Reactor . | . . . . . Propulsion 10 | . 6 . . 4 Treads 7 | . 4 . . 3 Leg 1 | . . . . 1 Wheel 2 | . 2 . . . Hover . | . . . . . Flight . | . . . . . Utility 2 | . 2 . . . Device . | . . . . . Storage 2 | . 2 . . . Processor . | . . . . . Hackware . | . . . . . Protection . | . . . . . Artifact . | . . . . . Weapon 5 | . 5 . . . Energy Gun 2 | . 2 . . . Energy Cannon . | . . . . . Ballistic Gun 2 | . 2 . . . Ballistic Cannon . | . . . . . Launcher 1 | . 1 . . . Special Weapon . | . . . . . Impact Weapon . | . . . . . Slashing Weapon . | . . . . . Piercing Weapon . | . . . . . Special Melee Weapon . | . . . . . Unidentified Prototypes . | . . . . . Parts Lost 8 | . 1 . . 7 Power 1 | . . . . 1 Propulsion 5 | . 1 . . 4 Utility . | . . . . . Weapon 2 | . . . . 2 Highest Loss Streak 6 | . 1 . . 6 Average Slot Usage (%) 96 | . 94 100 100 83 Engine 13 | . 13 14 14 11 Treads 19 | . 24 14 14 14 Wheel 7 | . 2 14 14 11 Storage 25 | . 23 28 28 28 Energy Gun 14 | . 3 28 28 18 Ballistic Gun 11 | . 22 . . . Launcher 1 | . 1 . . . Naked Turns . | . . . . . Heaviest Build 57 | 13 57 57 57 57 Greatest Support 40 | 20 40 10 10 40 Greatest Overweight (x) 5 | . 5 5 5 5 Average Overweight (x) 3 | . 1 5 5 4 Largest Inventory Capacity 18 | 6 18 18 18 18 Average Capacity 15 | 6 12 18 18 18 Most Carried 17 | 6 14 16 17 17 Average Carried 11 | 6 8 14 16 16 Final Capacity 18 | 6 18 18 18 18 Final Carried 17 | 6 13 16 17 13 Class Distribution -------------------- 100% | Mutant Dominant Class ---------------- Mutant | -10/Materials Mutant | -10/Mines Mutant | -10/Exiles Mutant | -9/Mines Resources | -11 -10 -10 -10 -9 ----------- Run | Scr Mat Min Exi Min Matter Collected 688 | 200 414 12 . 62 Remotely . | . . . . . Salvage Created 552 | . 552 . . . Parts 39 | . 39 . . . Haulers Intercepted 2 | . 2 . . . Recyclers Shooed 1 | . 1 . . . Parts Field Recycled . | . . . . . Retrieved Matter . | . . . . . Parts Self-Destructed . | . . . . . Prevented . | . . . . . Kills | -11 -10 -10 -10 -9 ------- Run | Scr Mat Min Exi Min Combat Hostiles Destroyed 12 | . 12 . . . Guns 9 | . 9 . . . AOE 3 | . 3 . . . Classes Destroyed 4 | . 4 . . . Hauler 2 | . 2 . . . Watcher 3 | . 3 . . . Swarmer 3 | . 3 . . . Grunt 9 | . 9 . . . Best Kill Streak 5 | . 5 . . . Combat Bots Only 4 | . 4 . . . Max Kills in Single Turn 1 | . 1 . . . Gunslinging . | . . . . . Exploded 1 | . 1 . . . Melee . | . . . . . Uniques/NPCs Destroyed . | . . . . . Combat | -11 -10 -10 -10 -9 -------- Run | Scr Mat Min Exi Min Damage Taken 1440 | . 692 . . 748 Core 250 | . 70 . . 180 Absorbed by Shields . | . . . . . Core Remaining (%) 100 | 100 . . . . Volleys Fired 65 | . 64 . . 1 Largest 2 | . 2 . . 1 Hottest 80 | . 80 . . 40 Shots Fired 128 | . 127 . . 1 Gun 124 | . 123 . . 1 Cannon . | . . . . . Launcher 4 | . 4 . . . Special . | . . . . . Kinetic 107 | . 107 . . . Thermal . | . . . . . Explosive 4 | . 4 . . . Electromagnetic 17 | . 16 . . 1 Robot Hit Streak 7 | . 7 . . . Robot Miss Streak 7 | . 6 . . 7 Penetration Max . | . . . . . Secondary Targets 1 | . 1 . . . Max Gunslinging Chain 1 | . 1 . . . Shots Hit Robots 76 | . 76 . . . Core Hits 38 | . 38 . . . Critical Hits . | . . . . . Critical Kills . | . . . . . Critical Parts Destroyed . | . . . . . Melee Attacks . | . . . . . Impact . | . . . . . Slashing . | . . . . . Piercing . | . . . . . Sneak Attacks . | . . . . . Combat Hostiles . | . . . . . Follow-up Attacks . | . . . . . Damage Inflicted 1192 | . 1192 . . . Guns 979 | . 979 . . . Cannons . | . . . . . Explosions 207 | . 207 . . . Melee . | . . . . . Ramming 6 | . 6 . . . Kinetic 854 | . 854 . . . Thermal . | . . . . . Explosive 207 | . 207 . . . Electromagnetic 125 | . 125 . . . Impact . | . . . . . Slashing . | . . . . . Piercing . | . . . . . Highest Corruption . | . . . . . Average Corruption . | . . . . . Corruption Purged . | . . . . . Overload Shots . | . . . . . Overflow Damage 21 | . 21 . . . Projectiles . | . . . . . Explosions 21 | . 21 . . . Melee . | . . . . . Knockbacks . | . . . . . Impact . | . . . . . Kinetic . | . . . . . Secondary . | . . . . . Self-Inflicted Damage . | . . . . . Shots . | . . . . . Rammed 1 | . 1 . . . Targets Rammed 1 | . 1 . . . Kicked . | . . . . . Crushed . | . . . . . Highest Temperature 114 | . 114 . . . Average Temperature 30 | . 30 . . . Received Heat Transfer 413 | . 333 . . 80 Siege Activations . | . . . . . Robots Corrupted . | . . . . . Combat Hostiles . | . . . . . Parts Fried 2 | . 2 . . . Impact Corruptions . | . . . . . Robots Melted . | . . . . . Combat Hostiles . | . . . . . Parts Melted . | . . . . . Heat Transferred . | . . . . . Parts Sabotaged . | . . . . . Parts Stolen . | . . . . . Parts Stripped . | . . . . . Power Chain Reactions . | . . . . . Missiles Intercepted . | . . . . . Alert | -11 -10 -10 -10 -9 ------- Run | Scr Mat Min Exi Min Peak Influence 200 | . 200 30 . . Initial 30 | . . 30 . . Average 75 | . 109 26 . . Maximum Alert Level 1 | . 1 . . . Low Security (%) 97 | 100 95 100 . 100 Level 1 2 | . 4 . . . Level 2 . | . . . . . Level 3 . | . . . . . Level 4 . | . . . . . Level 5 . | . . . . . High Security . | . . . . . Max Security . | . . . . . Squads Dispatched 3 | . 3 . . . Investigation 1 | . 1 . . . Extermination . | . . . . . Reinforcement 2 | . 2 . . . Assault . | . . . . . Garrison . | . . . . . Intercept . | . . . . . Construction Impeded . | . . . . . Haulers Reinforced . | . . . . . Stealth | -11 -10 -10 -10 -9 --------- Run | Scr Mat Min Exi Min Distress Signals 1 | . 1 . . . Communications Jammed . | . . . . . Distress Signals . | . . . . . Times Spotted 43 | . 22 . . 21 Peak Tracking Total 19 | . 5 . . 19 Tactical Retreats 2 | . 1 . . 1 Traps | -11 -10 -10 -10 -9 ------- Run | Scr Mat Min Exi Min Traps Triggered 2 | . 2 . . . Indirectly . | . . . . . Trap Hack Attempts . | . . . . . Triggered . | . . . . . Disarmed . | . . . . . Reprogrammed . | . . . . . Reused . | . . . . . Traps Extracted . | . . . . . Installed . | . . . . . Triggered . | . . . . . Machines | -11 -10 -10 -10 -9 ---------- Run | Scr Mat Min Exi Min Machines Disabled 2 | . 2 . . . Max in Single Turn 1 | . 1 . . . Machines Sabotaged . | . . . . . Garrisons Compromised . | . . . . . Overloaded Fab Kills . | . . . . . Fab Network Shutdowns . | . . . . . Hacking | -11 -10 -10 -10 -9 --------- Run | Scr Mat Min Exi Min Machines Accessed 6 | . 4 1 1 . Terminals 4 | . 4 . . . Fabricators . | . . . . . Repair Stations . | . . . . . Recycling Units . | . . . . . Scanalyzers . | . . . . . Garrison Access . | . . . . . Total Hacks 12 | . 10 1 1 . Successful 6 | . 4 1 1 . Failed 6 | . 6 . . . Catastrophic . | . . . . . Database Lockouts . | . . . . . Manual 6 | . 5 . 1 . Terminals 10 | . 10 . . . Fabricators . | . . . . . Repair Stations . | . . . . . Recycling Units . | . . . . . Scanalyzers . | . . . . . Garrison Access . | . . . . . Terminal Hacks 2 | . . 1 1 . Open Door 1 | . . 1 . . EX-Prototype ID Bank 1 | . . . 1 . Fabricator Hacks . | . . . . . Repair Station Hacks . | . . . . . Recycling Unit Hacks . | . . . . . Scanalyzer . | . . . . . Garrison Access Hacks . | . . . . . Unauthorized Hacks 4 | . 4 . . . Terminals 4 | . 4 . . . Botnet 4 | . 4 . . . Fabricators . | . . . . . Repair Stations . | . . . . . Recycling Units . | . . . . . Scanalyzers . | . . . . . Garrison Access . | . . . . . Data Cores Recovered . | . . . . . Used . | . . . . . Hacking Detections 4 | . 4 . . . Full Trace Events . | . . . . . Feedback Events . | . . . . . Feedback Blocked . | . . . . . Robot Schematics Acquired . | . . . . . Robots Built . | . . . . . Matter . | . . . . . Time . | . . . . . Total Robot Build Rating . | . . . . . Part Schematics Acquired . | . . . . . Parts Built . | . . . . . Matter . | . . . . . Time . | . . . . . Total Part Build Rating . | . . . . . Parts Repaired . | . . . . . Time . | . . . . . Parts Recycled . | . . . . . Recycled Matter . | . . . . . Retrieved Matter . | . . . . . Retrieved Components . | . . . . . Parts Scanalyzed . | . . . . . Part Schematics Acquired . | . . . . . Parts Damaged . | . . . . . Bothacking | -11 -10 -10 -10 -9 ------------ Run | Scr Mat Min Exi Min Used RIF Installer . | . . . . . Robots Hacked . | . . . . . Non-combat . | . . . . . Combat . | . . . . . Robot Hacks Applied . | . . . . . Relay Couplers Released . | . . . . . Robots Rewired . | . . . . . Allies Hacked . | . . . . . Hacks Repelled . | . . . . . Allies | -11 -10 -10 -10 -9 -------- Run | Scr Mat Min Exi Min Total Allies . | . . . . . Largest Group . | . . . . . Highest-Rated Group . | . . . . . Highest-Rated Ally . | . . . . . Total Orders . | . . . . . Ally Attacks . | . . . . . Total Damage . | . . . . . Kills . | . . . . . Allies Corrupted . | . . . . . Allies Melted . | . . . . . Intel | -11 -10 -10 -10 -9 ------- Run | Scr Mat Min Exi Min Robot Analysis Total . | . . . . . Derelict Logs Recovered 1 | . . 1 . . Drone Launches . | . . . . . Drone Recoveries . | . . . . . Exploration | -11 -10 -10 -10 -9 ------------- Run | Scr Mat Min Exi Min Turns Passed 1766 | 5 929 455 272 105 Spaces Moved 1036 | 5 404 345 209 73 Core . | . . . . . Treads 322 | . 317 . . 5 Legs 9 | 5 2 . . 2 Wheels 705 | . 85 345 209 66 Hover . | . . . . . Flight . | . . . . . Fastest Speed 90 | 120 90 130 130 130 Average Speed 143 | 120 162 130 130 137 Slowest Speed 240 | 120 180 130 130 240 Overloaded Moves . | . . . . . Propulsion Burnouts . | . . . . . Robots Hopped . | . . . . . Cave-ins Triggered . | . . . . . Exploration Rate (%) 52 | 3 88 77 60 35 Regions Visited 4 Branch Regions 3 Pre-discovered Areas . | . . . . . Known Exits Taken . | . . . . . Unknown Exits Taken 4 | 1 1 1 1 . Scrap Searched 1 | . . 1 . . Spaces Dug . | . . . . . Terrain Destroyed 14 | . 14 . . . Melee . | . . . . . Projectile . | . . . . . AOE 14 | . 14 . . . Terrain Rammed . | . . . . . Walls Destroyed . | . . . . . Machines Disabled . | . . . . . Actions | -11 -10 -10 -10 -9 --------- Run | Scr Mat Min Exi Min Total 1190 | 4 548 351 209 78 Wait 51 | . 46 5 . . Move 1032 | 4 403 344 208 73 Hop . | . . . . . Pick Up 19 | . 16 2 1 . Fast Attach . | . . . . . Attach 10 | . 6 . . 4 Detach . | . . . . . Swap 8 | . 8 . . . Drop 4 | . 4 . . . Fire 65 | . 64 . . 1 Melee . | . . . . . Ram . | . . . . . Kick . | . . . . . Crush 1 | . 1 . . . Escape Stasis . | . . . . . Rewire . | . . . . . Trap . | . . . . . Miscellaneous . | . . . . . Route ------- -11/Scrapyard -10/Materials (discovered 3 exits: [*Mat] / *Min x2) -10/Mines (discovered 2 exits: [*Mat] / *Exi) -10/Exiles -9/Mines History --------- Turn | Location | Event 1 | -11/Scrapyard | Discovered new exit (range 3) 6 | -11/Scrapyard | Entered Materials 253 | -10/Materials | Discovered new exit (range 5) 301 | -10/Materials | Build established: Mutant 394 | -10/Materials | Discovered new exit (range 15) 841 | -10/Materials | Discovered new exit (range 4) 935 | -10/Materials | Entered Mines 988 | -10/Mines | Met a Derelict bent on vengeance 993 | -10/Mines | Learned Materials garrison access intel 1023 | -10/Mines | Discovered new exit (range 13) 1109 | -10/Mines | Received a Rocket Launcher from a helpful Derelict 1220 | -10/Mines | Found the Drone Emporium 1226 | -10/Mines | Found Prototype Device 1384 | -10/Mines | Deemed a non-threat by the Exiles lab entrance 1384 | -10/Mines | Discovered new exit (range 5) 1390 | -10/Mines | Entered Exiles 1426 | -10/Exiles | Met 8R-AWN 1445 | -10/Exiles | Met EX-HEX 1481 | -10/Exiles | Met EX-BIN 1497 | -10/Exiles | Aligned with FarCom system 1498 | -10/Exiles | Given EX-Vault access code 1530 | -10/Exiles | Opened EX-Vault 1540 | -10/Exiles | Found Longsword +1 1566 | -10/Exiles | Warned to stay clear of 0b10 Research branches 1603 | -10/Exiles | Met EX-DEC 1650 | -10/Exiles | Discovered new exit (range 10) 1662 | -10/Exiles | Left Exiles lab with Longsword +1 1662 | -10/Exiles | Entered Mines 1701 | -9/Mines | Assembled infested the area 1706 | -9/Mines | Assisted by a Guerilla fighting off Assembled 1752 | -9/Mines | Core integrity fell below 50% 1763 | -9/Mines | Core integrity fell below 20% 1767 | -9/Mines | Destroyed by D-53 Grenadier with Mini Grenade Launcher Last Messages --------------- 01750_ as-11462 destroyed. 01750_ U-05 Engineer destroyed. 01750_ K-01 Serf collects debris. 01751_ as-60865 destroyed. 01751_ Lgt. Treads destroyed. 01751_ as-35816 destroyed. 01751_ as-34001 destroyed. 01751_ as-95812 destroyed. 01753_ as-56986 destroyed. 01753_ as-60720 destroyed. 01754_ K-01 Serf collects debris. 01755_ as-68402 destroyed. 01755_ as-88314 destroyed. 01756_ The unstable cave ceiling collapses. 01757_ as-60058 destroyed. 01757_ as-61547 destroyed. 01757_ as-46236 destroyed. 01758_ The unstable cave ceiling collapses. 01763_ Lgt. Treads destroyed. 01767_ The unstable cave ceiling collapses. Map ----- +----------------------------------------------------+ | | | | | | | ????????????????????????????????????????????????? | | ????????????????????????????????????????????????? | | ????????????????????????????????????????????????? | | ????????????????????????????????????????????????? | | ????????????????????????????????????????????????? | | ????????????????????????????????????????????????? | | ????????????????????????????????????????????????? | | ????????????????????????????????????????????????? | | ????????????????????????????????????????????????? | | ????????????????????????????????????????????????? | | ????????????????????????????????????????????????? | | ??????????????????????######????????????????????? | | ?????????????????????## ##???????????????????? | | ?????????????????????# #???????????????????? | | ????????????????????# ????????????????????? | | ?????????????######## ????????????????????? | | ??????????#?## ????????????????????? | | ?????????? ## < #????????????????????? | | ???????? ? ##???????????????????? | | #??????? ##??????????????????? | | "##?????? #??????????????????? | | ###??? ##?????????????????? | | ##?? ## @ #?????????????????? | | ## #### #?????????????????? | | ## # ##?????????????????? | | #?????????????????? | | #?????????????????? | | d #?????????????????? | | d ##?????????????????? | | # # # # ! ###??????????????????? | | ## ##????????????????????? | | ## # #?????????????????????? | | ### #### ## # #?????????????????????? | | ########??# ## #?????????????????????? | | #???????# ### ##?????????????????????? | | ### #???????# $ # #???????????????? | | ### #???????# #????????????????? | | # #######?## # % # #?????????????????? | | #??## ## ???????????????????????? | | ### #??## ### # ##???????????????????????? | | ##?# #??# ! ##?????????????????????????? | | ##??# #?# %*#####??????????????????????????? | | ###### #?# !##??????????????????????????????? | | ### ### ##???????????????????????????????? | | ## ### ?????????????????????????????????? | | #?##?????????????????????????????????? | | ##????????????????????????????????????? | +----------------------------------------------------+ Best States ------------- Heat Dissipation 25 Energy Generation 10 Energy Capacity 250 Matter Stores 300 Matter Capacity 300 Sight Range 16 Terrain Scan Density 10 Evasion (%) 42 Recoil Reduction 2 Item Schematics ----------------- None Robot Schematics ------------------ None Fabricated ------------ Nothing Alien Tech Used ----------------- None Achievements -------------- None Challenges ------------ None Game ------ Seed PortableRelayLance Manual? 0 Play Time 00:19:12 Cumulative 22.2 hours Start 2021.10.18 @ 19:17:22 End 2021.10.18 @ 21:26:04 Sessions 1 Manual Loads 0 Difficulty Rogue Special Mode None Game No. 20 Rogue 20 Adventurer 0 Explorer 0 Win Type - Total 0 Types 0/0/0/0/0/0/0/0/0 Lore% 7 Gallery% 26 Achievement% 20 Wizard Run 0 Options --------- ASCII 0 Keyboard 0 Movement Numpad Keybinds 0 Fullscreen 0 Font 20/SmallcapsGlow Map View 76x50 Tactical HUD 1 Map Filters NONE Filters NONE Steam 1 RUN: fbd33232-4da3-493a-9031-f900e2831d53